Cogmind - Beta 10.2 @@@ ROGUE MODE // 2021.03.16 @ 15:22:12 Player: ChromeKnight Result: Destroyed by G-34 Mercenary with Small Laser Performance ------------- Evolutions (0) 0 Regions Visited (2) 400 Robots Destroyed (12) 60 Value Destroyed (314) 314 Prototype IDs (0) 0 Alien Tech Used (0) 0 Bonus (0) 0 TOTAL SCORE: 774 Bonus ------- None Cogmind --------- Core Integrity 0/250 Matter 300/300 Energy 97/100 System Corruption 0% Temperature Cool (6) Movement Core (350) Ox6 Location -10/Mines Parts ------- > --- POWER (1) -------- (None) > --- PROPULSION (2) --- (None) > --- UTILITY (2) ------ Improved Heat Sink Large Storage Unit > --- WEAPON (2) ------- Makeshift Hammer > --- INVENTORY (10) --- Aluminum Leg Aluminum Leg Aluminum Leg High-capacity Matter Pod (156) Rocket Launcher Blade Trap Blade Trap Blade Trap Peak State ------------ > --- POWER ------------ Light Nuclear Core > --- PROPULSION ------- Aluminum Leg Aluminum Leg > --- UTILITY ---------- Improved Heat Sink Large Storage Unit > --- WEAPON ----------- Particle Gun Assault Rifle > --- INVENTORY -------- Aluminum Leg Aluminum Leg Aluminum Leg High-capacity Matter Pod Rocket Launcher Makeshift Hammer Blade Trap Blade Trap Blade Trap [Rating: 13] Favorites ----------- Power Light Nuclear Core Engine Ion Engine Power Core Light Nuclear Core Propulsion Aluminum Leg Leg Aluminum Leg Utility Large Storage Unit Device Improved Heat Sink Storage Large Storage Unit Weapon Assault Rifle Energy Gun Particle Gun Ballistic Gun Assault Rifle Impact Weapon Makeshift Hammer Build | -11 -10 -10 ------- Run | Scr Mat Min Slots Evolved . | . . . Power . | . . . Propulsion . | . . . Utility . | . . . Weapon . | . . . Parts Attached 21 | 6 4 11 Power 4 | 1 1 2 Engine 3 | 1 1 1 Core 1 | . . 1 Reactor . | . . . Propulsion 10 | 2 2 6 Treads . | . . . Leg 10 | 2 2 6 Wheel . | . . . Hover . | . . . Flight . | . . . Utility 3 | 1 1 1 Device 1 | . . 1 Storage 2 | 1 1 . Processor . | . . . Hackware . | . . . Protection . | . . . Artifact . | . . . Weapon 4 | 2 . 2 Energy Gun 1 | . . 1 Energy Cannon . | . . . Ballistic Gun 2 | 2 . . Ballistic Cannon . | . . . Launcher . | . . . Special Weapon . | . . . Impact Weapon 1 | . . 1 Slashing Weapon . | . . . Piercing Weapon . | . . . Special Melee Weapon . | . . . Unidentified Prototypes . | . . . Parts Lost 7 | . . 7 Power 2 | . . 2 Propulsion 2 | . . 2 Utility . | . . . Weapon 3 | . . 3 Highest Loss Streak 5 | . . 5 Average Slot Usage (%) 90 | . 85 91 Engine 7 | . 14 5 Core 6 | . . 7 Leg 27 | . 28 27 Device 10 | . . 12 Storage 14 | . 14 14 Energy Gun 6 | . . 7 Ballistic Gun 16 | . 28 14 Naked Turns . | . . . Heaviest Build 27 | 12 24 27 Greatest Support 20 | 20 20 20 Greatest Overweight (x) 6 | 2 1 6 Average Overweight (x) . | . . 1 Largest Inventory Capacity 12 | 6 12 10 Average Capacity 9 | 5 6 10 Most Carried 10 | . 4 10 Average Carried 6 | . 2 7 Final Capacity 10 | 6 10 10 Final Carried 8 | . 4 8 Class Distribution -------------------- 55% | Mutant 44% | Scavenger-Mutant Dominant Class ---------------- Mutant | -10/Materials Scavenger-Mutant | -10/Mines Resources | -11 -10 -10 ----------- Run | Scr Mat Min Matter Collected 660 | 231 108 321 Remotely . | . . . Salvage Created 394 | . 108 286 Parts 25 | . 9 16 Haulers Intercepted . | . . . Recyclers Shooed . | . . . Parts Field Recycled . | . . . Retrieved Matter . | . . . Parts Self-Destructed . | . . . Prevented . | . . . Kills | -11 -10 -10 ------- Run | Scr Mat Min Combat Hostiles Destroyed 12 | . 4 8 Melee 1 | . . 1 Guns 9 | . 4 5 Classes Destroyed 2 | . 2 . Swarmer 5 | . 2 3 Grunt 7 | . 2 5 Best Kill Streak 4 | . 4 4 Combat Bots Only 4 | . 4 4 Max Kills in Single Turn 1 | . 1 1 Gunslinging . | . . . Exploded . | . . . Melee 1 | . . 1 Uniques/NPCs Destroyed . | . . . Combat | -11 -10 -10 -------- Run | Scr Mat Min Damage Taken 1168 | . 262 906 Core 251 | . 35 216 Absorbed by Shields . | . . . Core Remaining (%) 100 | 100 . . Volleys Fired 37 | . 15 22 Largest 2 | . 2 2 Hottest 85 | . 40 85 Shots Fired 61 | . 30 31 Gun 61 | . 30 31 Cannon . | . . . Launcher . | . . . Special . | . . . Kinetic 57 | . 30 27 Thermal 4 | . . 4 Explosive . | . . . Electromagnetic . | . . . Robot Hit Streak 15 | . 1 15 Robot Miss Streak 3 | . 3 1 Penetration Max . | . . . Secondary Targets . | . . . Shots Hit Robots 34 | . 1 33 Core Hits 16 | . 7 9 Critical Hits . | . . . Critical Kills . | . . . Critical Parts Destroyed . | . . . Melee Attacks 17 | . . 17 Impact 17 | . . 17 Slashing . | . . . Piercing . | . . . Sneak Attacks . | . . . Combat Hostiles . | . . . Follow-up Attacks . | . . . Damage Inflicted 736 | . 210 526 Guns 489 | . 210 279 Cannons . | . . . Explosions . | . . . Melee 247 | . . 247 Ramming . | . . . Kinetic 447 | . 210 237 Thermal 42 | . . 42 Explosive . | . . . Electromagnetic . | . . . Impact 247 | . . 247 Slashing . | . . . Piercing . | . . . Highest Corruption . | . . . Average Corruption . | . . . Corruption Purged . | . . . Overload Shots . | . . . Overflow Damage 11 | . . 11 Projectiles . | . . . Explosions . | . . . Melee 11 | . . 11 Knockbacks . | . . . Impact . | . . . Kinetic . | . . . Secondary . | . . . Self-Inflicted Damage . | . . . Shots . | . . . Rammed . | . . . Targets Rammed . | . . . Kicked . | . . . Crushed . | . . . Highest Temperature 12 | . 6 12 Average Temperature 6 | . 6 7 Received Heat Transfer 378 | . 84 294 Siege Activations . | . . . Robots Corrupted . | . . . Combat Hostiles . | . . . Parts Fried 2 | . . 2 Impact Corruptions 4 | . . 4 Robots Melted . | . . . Combat Hostiles . | . . . Parts Melted . | . . . Heat Transferred 111 | . . 111 Parts Sabotaged . | . . . Parts Stolen . | . . . Parts Stripped . | . . . Power Chain Reactions . | . . . Missiles Intercepted . | . . . Alert | -11 -10 -10 ------- Run | Scr Mat Min Peak Influence 141 | . 80 141 Initial 31 | . . 31 Average 41 | . 52 42 Maximum Alert Level . | . . . Low Security (%) 100 | 100 100 100 Level 1 . | . . . Level 2 . | . . . Level 3 . | . . . Level 4 . | . . . Level 5 . | . . . High Security . | . . . Max Security . | . . . Squads Dispatched 1 | . 1 . Investigation . | . . . Extermination . | . . . Reinforcement 1 | . 1 . Assault . | . . . Garrison . | . . . Intercept . | . . . Construction Impeded . | . . . Haulers Reinforced . | . . . Stealth | -11 -10 -10 --------- Run | Scr Mat Min Distress Signals 1 | . 1 . Communications Jammed . | . . . Distress Signals . | . . . Times Spotted 18 | . 6 12 Peak Tracking Total 4 | . 4 4 Tactical Retreats 2 | . . 2 Traps | -11 -10 -10 ------- Run | Scr Mat Min Traps Triggered . | . . . Indirectly . | . . . Trap Hack Attempts . | . . . Triggered . | . . . Disarmed . | . . . Reprogrammed . | . . . Reused . | . . . Traps Extracted . | . . . Installed . | . . . Triggered . | . . . Machines | -11 -10 -10 ---------- Run | Scr Mat Min Machines Disabled . | . . . Max in Single Turn . | . . . Machines Sabotaged . | . . . Garrisons Compromised . | . . . Overloaded Fab Kills . | . . . Fab Network Shutdowns . | . . . Hacking | -11 -10 -10 --------- Run | Scr Mat Min Machines Accessed . | . . . Terminals . | . . . Fabricators . | . . . Repair Stations . | . . . Recycling Units . | . . . Scanalyzers . | . . . Garrison Access . | . . . Total Hacks . | . . . Successful . | . . . Failed . | . . . Catastrophic . | . . . Database Lockouts . | . . . Manual . | . . . Terminals . | . . . Fabricators . | . . . Repair Stations . | . . . Recycling Units . | . . . Scanalyzers . | . . . Garrison Access . | . . . Terminal Hacks . | . . . Fabricator Hacks . | . . . Repair Station Hacks . | . . . Recycling Unit Hacks . | . . . Scanalyzer . | . . . Garrison Access Hacks . | . . . Unauthorized Hacks . | . . . Terminals . | . . . Fabricators . | . . . Repair Stations . | . . . Recycling Units . | . . . Scanalyzers . | . . . Garrison Access . | . . . Data Cores Recovered . | . . . Used . | . . . Hacking Detections . | . . . Full Trace Events . | . . . Feedback Events . | . . . Feedback Blocked . | . . . Robot Schematics Acquired . | . . . Robots Built . | . . . Matter . | . . . Time . | . . . Total Robot Build Rating . | . . . Part Schematics Acquired . | . . . Parts Built . | . . . Matter . | . . . Time . | . . . Total Part Build Rating . | . . . Parts Repaired . | . . . Time . | . . . Parts Recycled . | . . . Recycled Matter . | . . . Retrieved Matter . | . . . Retrieved Components . | . . . Parts Scanalyzed . | . . . Part Schematics Acquired . | . . . Parts Damaged . | . . . Bothacking | -11 -10 -10 ------------ Run | Scr Mat Min Used RIF Installer . | . . . Robots Hacked . | . . . Non-combat . | . . . Combat . | . . . Robot Hacks Applied . | . . . Relay Couplers Released . | . . . Robots Rewired . | . . . Allies Hacked . | . . . Hacks Repelled . | . . . Allies | -11 -10 -10 -------- Run | Scr Mat Min Total Allies . | . . . Largest Group . | . . . Highest-Rated Group . | . . . Highest-Rated Ally . | . . . Total Orders . | . . . Ally Attacks . | . . . Total Damage . | . . . Kills . | . . . Allies Corrupted . | . . . Allies Melted . | . . . Intel | -11 -10 -10 ------- Run | Scr Mat Min Robot Analysis Total . | . . . Derelict Logs Recovered 1 | . . 1 Drone Launches . | . . . Drone Recoveries . | . . . Exploration | -11 -10 -10 ------------- Run | Scr Mat Min Turns Passed 1238 | 83 212 943 Spaces Moved 680 | 59 130 491 Core 20 | 16 . 4 Treads . | . . . Legs 660 | 43 130 487 Wheels . | . . . Hover . | . . . Flight . | . . . Fastest Speed 50 | 50 120 150 Average Speed 144 | 126 124 151 Slowest Speed 350 | 150 150 350 Overloaded Moves . | . . . Propulsion Burnouts . | . . . Robots Hopped . | . . . Cave-ins Triggered . | . . . Exploration Rate (%) 35 | 4 26 77 Regions Visited 2 Branch Regions 1 Pre-discovered Areas 1 | . . 1 Known Exits Taken . | . . . Unknown Exits Taken 2 | 1 1 . Scrap Searched 1 | . . 1 Spaces Dug . | . . . Terrain Destroyed . | . . . Melee . | . . . Projectile . | . . . AOE . | . . . Terrain Rammed . | . . . Walls Destroyed . | . . . Machines Disabled . | . . . Actions | -11 -10 -10 --------- Run | Scr Mat Min Total 857 | 64 152 641 Wait 91 | . 2 89 Move 678 | 58 129 491 Hop . | . . . Pick Up 6 | . 1 5 Fast Attach 10 | 6 1 3 Attach 1 | . . 1 Detach . | . . . Swap 10 | . 3 7 Drop 7 | . 1 6 Fire 37 | . 15 22 Melee 17 | . . 17 Ram . | . . . Kick . | . . . Crush . | . . . Escape Stasis . | . . . Rewire . | . . . Trap . | . . . Miscellaneous . | . . . Route ------- -11/Scrapyard -10/Materials -10/Mines (discovered 2 exits: [*Mat x2]) History --------- Turn | Location | Event 26 | -11/Scrapyard | Discovered new exit (range 16) 84 | -11/Scrapyard | Entered Materials 273 | -10/Materials | Discovered new exit (range 16) 296 | -10/Materials | Entered Mines 310 | -10/Mines | Build established: Mutant 325 | -10/Mines | Met a Derelict bent on vengeance 339 | -10/Mines | Discovered new exit (range 12) 358 | -10/Mines | Received a Rocket Launcher from a helpful Derelict 434 | -10/Mines | Found a hidden stash of uninstalled traps 713 | -10/Mines | A weapon hastily lodged in a ceiling crevice suddenly fell to the ground 756 | -10/Mines | Learned location of Storage (-7) 783 | -10/Mines | Discovered new exit (range 6) 968 | -10/Mines | Build established: Scavenger-Mutant 1102 | -10/Mines | Excavation squad dispatched 1102 | -10/Mines | A large section of the Mines collapsed 1212 | -10/Mines | Core integrity fell below 50% 1236 | -10/Mines | Core integrity fell below 20% 1239 | -10/Mines | Destroyed by G-34 Mercenary with Small Laser Last Messages --------------- 01215_ as-18111 sneak attacks. 01215_ T-07 Excavator system corrupted by crushing effect. 01215_ T-07 Excavator knocked back. 01216_ T-07 Excavator system terminally corrupted. 01216_ Destroyed Flight Unit. 01216_ Destroyed Lgt. Ion Engine. 01216_ S-10 Pest system corrupted by crushing effect. 01216_ Aluminum Leg destroyed. 01217_ S-10 Pest system terminally corrupted. 01218_ Acquired 17 matter. 01218_ K-01 Serf collects debris. 01218_ as-18111 sneak attacks. 01218_ K-01 Serf system corrupted by crushing effect. 01218_ K-01 Serf knocked back. 01219_ K-01 Serf system terminally corrupted. 01225_ Destroyed Sml. Laser. 01225_ G-34 Mercenary system corrupted by crushing effect. 01228_ Knocked back. 01235_ T-07 Excavator is excavating. 01235_ Knocked back. Map ----- +----------------------------------------------------+ | ???????????????????????????????????????? | | ???????????????????????????????????????? | | ???????????????????????????????????????? | | ???????????????????????????????????????? | | ???????????????????????????????????????? | | ???????????????????????????????????????? | | ???????????????????????????????????????? | | ???????????????????????????????????????? | | ?????????????###???????????????????????? | | ????????????## ##??????????????? ??????? | | ????????????# #??????????????? ??????? | | ???????????## #?????????????? #?????? | | ??????????## #?????????????? ??????? | | ??????????# ##?????????????? ??????? | | ?????????## ###??????????????? ??????? | | ?????????# ##????????????????? ??????? | | ?????????# #?????????????????? #??????? | | ?????????# #?????????????????? #??????? | | ????????## ##?????????????#### #??????? | | ????????# #?????????????? ???????? | | ##?????## #??????????????? ???????? | | ##???## ##??????????????# #???????? | | ##### ####???????????# ##??????? | | ## ##?????????## %##?????? | | ##?#??##### =##????? | | ### ##@a % #????? | | ## g ####%=%%#????? | | # ## ## #### #??## #????? | | # ### #### #??# #??## ####???? | | ## ### ####### #??# #??##"# #??? | | ?# * #?## #??# #?# ### ##??? | | ?## ###### #??# #??# #?# ##???? | | ??## ##????# #??# #??# #?## ##????? | | ???####?????# #??# #??# #??# #?????? | | ???????????## #??# #### #??# #?????? | | ??????????## #??# #??# #?????? | | ??????????# #??# ######?? #?????? | | ??????????# ##?# #??????? #?????? | | ??????????# ### #?????? #?????? | | ??????????## ## #?????? #?????? | | ???????????# # #??????? ??????? | | ?????####### ##???????? ???????? | | ?????# ! ! < #????????????????? | | ?????# #????????????????? | | ###### ######### ?????????? | | #???????## #########????????? | | #????????# #????????????????? | | #########???????# ##????????????????? | | ???????????????# #?????????????????? | | ??????????????# #?????????????????? | +----------------------------------------------------+ Best States ------------- Heat Dissipation 39 Energy Generation 14 Energy Capacity 250 Matter Stores 300 Matter Capacity 300 Sight Range 16 Terrain Scan Density 10 Evasion (%) 40 Item Schematics ----------------- None Robot Schematics ------------------ None Fabricated ------------ Nothing Alien Tech Used ----------------- None Achievements -------------- None Challenges ------------ None Game ------ Seed VariableWeldingRay Manual? 0 Play Time 00:07:10 Cumulative 68.7 hours Start 2021.03.16 @ 15:18:00 End 2021.03.16 @ 15:22:12 Sessions 1 Manual Loads 0 Difficulty Rogue Special Mode None Game No. 184 Rogue 33 Adventurer 148 Explorer 3 Win Type - Total 0 Types 0/0/0/0/0/0/0/0/0 Lore% 49 Gallery% 58 Achievement% 46 Wizard Run 0 Options --------- ASCII 0 Keyboard 0 Movement Arrows Keybinds 0 Fullscreen 1 Font 14/Smallcaps Map View 84x54 Tactical HUD 1 Map Filters NONE Filters NONE Steam 1 RUN: c70b6f74-f333-4d41-b17d-93aeecb025ee